[Event "Titled Tuesday Blitz April 25 Early 2023"]
[White "Staudenhocker43"]
[Black "Wieczorek, Oskar"]
[BlackFideId "1133950"]
[WhiteElo "2470"]
[BlackElo "2418"]
[Result "0-1"]
[Round "03"]
[TimeControl "180+2"]
[Date "2023.04.25"]
[WhiteClock "0:00:15"]
[BlackClock "0:00:06"]

1. e4 {[%clk 0:03:00]}  c5 {[%clk 0:02:58]} 2. Nf3 {[%clk 0:03:01]}  e6 {[%clk 0:02:59]} 3. c3 {[%clk 0:02:59]}  d5 {[%clk 0:02:58]} 4. exd5 {[%clk 0:02:59]}  exd5 {[%clk 0:02:59]} 5. d4 {[%clk 0:02:59]}  Nc6 {[%clk 0:02:59]} 6. Bb5 {[%clk 0:02:59]}  Nf6 {[%clk 0:02:54]} 7. O-O {[%clk 0:02:59]}  Be6 {[%clk 0:02:51]} 8. Re1 {[%clk 0:02:57]}  a6 {[%clk 0:02:43]} 9. Bxc6+ {[%clk 0:02:56]}  bxc6 {[%clk 0:02:44]} 10. Qa4 {[%clk 0:02:55]}  Qb6 {[%clk 0:02:43]} 11. Be3 {[%clk 0:02:38]}  c4 {[%clk 0:02:33]} 12. Ne5 {[%clk 0:02:34]}  Qb5 {[%clk 0:02:32]} 13. Qc2 {[%clk 0:02:09]}  Bd6 {[%clk 0:02:30]} 14. Na3 {[%clk 0:02:03]}  Qb7 {[%clk 0:02:27]} 15. Bg5 {[%clk 0:01:44]}  O-O {[%clk 0:02:18]} 16. Bxf6 {[%clk 0:01:44]}  gxf6 {[%clk 0:02:19]} 17. Nf3 {[%clk 0:01:38]}  Rab8 {[%clk 0:02:19]} 18. Re2 {[%clk 0:01:35]}  Kh8 {[%clk 0:02:13]} 19. Rae1 {[%clk 0:01:34]}  Rg8 {[%clk 0:02:07]} 20. Nh4 {[%clk 0:01:33]}  c5 {[%clk 0:01:49]} 21. Nf5 {[%clk 0:01:26]}  Bf8 {[%clk 0:01:39]} 22. Nb1 {[%clk 0:01:13]}  Rg5 {[%clk 0:01:36]} 23. Nh4 {[%clk 0:00:55]}  cxd4 {[%clk 0:01:32]} 24. cxd4 {[%clk 0:00:54]}  Bd6 {[%clk 0:01:32]} 25. Nc3 {[%clk 0:00:53]}  Rbg8 {[%clk 0:01:27]} 26. g3 {[%clk 0:00:52]}  Qb8 {[%clk 0:01:13]} 27. Ng2 {[%clk 0:00:47]}  Bf5 {[%clk 0:00:45]} 28. Qd2 {[%clk 0:00:44]}  Bd3 {[%clk 0:00:44]} 29. Re3 {[%clk 0:00:41]}  f5 {[%clk 0:00:41]} 30. Nxd5 {[%clk 0:00:30]}  f4 {[%clk 0:00:42]} 31. Rxd3 {[%clk 0:00:30]}  Rxd5 {[%clk 0:00:22]} 32. Rf3 {[%clk 0:00:28]}  Bb4 {[%clk 0:00:22]} 33. Qxf4 {[%clk 0:00:24]}  Bxe1 {[%clk 0:00:17]} 34. Nxe1 {[%clk 0:00:24]}  Qxf4 {[%clk 0:00:15]} 35. Rxf4 {[%clk 0:00:24]}  Rb8 {[%clk 0:00:16]} 36. Rxf7 {[%clk 0:00:22]}  Rxb2 {[%clk 0:00:15]} 37. Nf3 {[%clk 0:00:22]}  Ra5 {[%clk 0:00:08]} 38. Rc7 {[%clk 0:00:22]}  Raxa2 {[%clk 0:00:08]} 39. Rxc4 {[%clk 0:00:22]}  Rxf2 {[%clk 0:00:08]} 40. Rc8+ {[%clk 0:00:19]}  Kg7 {[%clk 0:00:08]} 41. Rc7+ {[%clk 0:00:20]}  Kf8 {[%clk 0:00:07]} 42. Ng5 {[%clk 0:00:16]}  Rg2+ {[%clk 0:00:07]} 43. Kf1 {[%clk 0:00:16]}  Rxh2 {[%clk 0:00:06]} 44. Ne6+ {[%clk 0:00:16]}  Kg8 {[%clk 0:00:06]} 45. Rg7+ {[%clk 0:00:15]}  Kh8 {[%clk 0:00:06]} 46. Rf7 {[%clk 0:00:15]}  Rh1# {[%clk 0:00:06]} 0-1


[Site "https://www.chess.com"]

[Event "Titled Tuesday Blitz April 25 Early 2023"]
[White "Sviridov, Valery"]
[Black "Sliwicki, Damian"]
[WhiteFideId "4120680"]
[BlackFideId "1127128"]
[WhiteElo "2457"]
[BlackElo "2030"]
[Result "1-0"]
[Round "03"]
[TimeControl "180+2"]
[Date "2023.04.25"]
[WhiteClock "0:00:26"]
[BlackClock "0:00:03"]

1. d4 {[%clk 0:03:00]}  c5 {[%clk 0:03:00]} 2. Nf3 {[%clk 0:02:59]}  cxd4 {[%clk 0:03:01]} 3. Nxd4 {[%clk 0:03:00]}  Nf6 {[%clk 0:02:56]} 4. c4 {[%clk 0:03:00]}  g6 {[%clk 0:02:56]} 5. Nc3 {[%clk 0:03:00]}  Nc6 {[%clk 0:02:56]} 6. g3 {[%clk 0:03:00]}  Bg7 {[%clk 0:02:56]} 7. Bg2 {[%clk 0:03:01]}  O-O {[%clk 0:02:57]} 8. O-O {[%clk 0:03:01]}  Nxd4 {[%clk 0:02:56]} 9. Qxd4 {[%clk 0:03:02]}  d6 {[%clk 0:02:56]} 10. b3 {[%clk 0:03:02]}  Bf5 {[%clk 0:02:54]} 11. Bb2 {[%clk 0:03:02]}  Ne4 {[%clk 0:02:46]} 12. Qe3 {[%clk 0:03:02]}  Nxc3 {[%clk 0:02:32]} 13. Bxc3 {[%clk 0:03:03]}  Qc7 {[%clk 0:02:04]} 14. Bxg7 {[%clk 0:03:01]}  Kxg7 {[%clk 0:02:05]} 15. Rac1 {[%clk 0:03:01]}  a5 {[%clk 0:01:33]} 16. h4 {[%clk 0:02:54]}  h5 {[%clk 0:01:31]} 17. c5 {[%clk 0:02:53]}  dxc5 {[%clk 0:01:28]} 18. Rxc5 {[%clk 0:02:54]}  Qd7 {[%clk 0:01:23]} 19. Qc3+ {[%clk 0:02:47]}  Kg8 {[%clk 0:01:14]} 20. Rc7 {[%clk 0:02:45]}  Qe6 {[%clk 0:01:03]} 21. e4 {[%clk 0:02:29]}  Bh3 {[%clk 0:00:26]} 22. Bxh3 {[%clk 0:02:29]}  Qxh3 {[%clk 0:00:27]} 23. Rxe7 {[%clk 0:02:29]}  a4 {[%clk 0:00:24]} 24. Rxb7 {[%clk 0:02:26]}  axb3 {[%clk 0:00:24]} 25. axb3 {[%clk 0:02:27]}  Ra2 {[%clk 0:00:22]} 26. Ra1 {[%clk 0:01:45]}  Rc8 {[%clk 0:00:19]} 27. Qf6 {[%clk 0:01:28]}  Qe6 {[%clk 0:00:16]} 28. Qd4 {[%clk 0:01:21]}  Rxa1+ {[%clk 0:00:16]} 29. Qxa1 {[%clk 0:01:21]}  Qxe4 {[%clk 0:00:17]} 30. Ra7 {[%clk 0:01:15]}  Qf3 {[%clk 0:00:16]} 31. Qb2 {[%clk 0:00:42]}  Rd8 {[%clk 0:00:11]} 32. Ra1 {[%clk 0:00:43]}  Re8 {[%clk 0:00:10]} 33. b4 {[%clk 0:00:38]}  Kh7 {[%clk 0:00:09]} 34. b5 {[%clk 0:00:34]}  Re2 {[%clk 0:00:09]} 35. Qd4 {[%clk 0:00:34]}  Qb7 {[%clk 0:00:06]} 36. b6 {[%clk 0:00:32]}  Re4 {[%clk 0:00:06]} 37. Qb2 {[%clk 0:00:30]}  Re6 {[%clk 0:00:06]} 38. Rb1 {[%clk 0:00:30]}  Rc6 {[%clk 0:00:06]} 39. Qb5 {[%clk 0:00:26]}  Re6 {[%clk 0:00:05]} 40. Qc5 {[%clk 0:00:23]}  Rc6 {[%clk 0:00:05]} 41. Qxc6 {[%clk 0:00:22]}  Qxc6 {[%clk 0:00:04]} 42. b7 {[%clk 0:00:23]}  Qe4 {[%clk 0:00:02]} 43. b8=Q {[%clk 0:00:23]}  Qe6 {[%clk 0:00:02]} 44. Qf4 {[%clk 0:00:23]}  g5 {[%clk 0:00:02]} 45. Qxg5 {[%clk 0:00:23]}  Qe4 {[%clk 0:00:03]} 46. Qxh5+ {[%clk 0:00:23]}  Kg7 {[%clk 0:00:04]} 47. Qg5+ {[%clk 0:00:24]}  Kh7 {[%clk 0:00:03]} 48. Rd1 {[%clk 0:00:23]}  Qe2 {[%clk 0:00:03]} 49. Qd2 {[%clk 0:00:23]}  Qf3 {[%clk 0:00:02]} 50. Qd3+ {[%clk 0:00:23]}  Qxd3 {[%clk 0:00:01]} 51. Rxd3 {[%clk 0:00:24]}  Kg6 {[%clk 0:00:02]} 52. Rd5 {[%clk 0:00:25]}  f5 {[%clk 0:00:03]} 53. Kg2 {[%clk 0:00:25]}  Kh5 {[%clk 0:00:03]} 54. Kf3 {[%clk 0:00:26]}  Kg6 {[%clk 0:00:03]} 55. Kf4 {[%clk 0:00:26]} 1-0


[Site "https://www.chess.com"]

[Event "Titled Tuesday Blitz April 25 Early 2023"]
[White "Chernobay, Artem"]
[Black "Khamdamova, Afruza"]
[WhiteFideId "4167406"]
[BlackFideId "14210444"]
[WhiteElo "2474"]
[BlackElo "2210"]
[Result "1/2-1/2"]
[Round "03"]
[TimeControl "180+2"]
[Date "2023.04.25"]
[WhiteClock "0:00:08"]
[BlackClock "0:00:03"]

1. e4 {[%clk 0:02:59]}  e5 {[%clk 0:03:00]} 2. Nc3 {[%clk 0:02:58]}  Nf6 {[%clk 0:02:59]} 3. f4 {[%clk 0:02:56]}  d5 {[%clk 0:02:59]} 4. fxe5 {[%clk 0:02:55]}  Nxe4 {[%clk 0:02:59]} 5. Qf3 {[%clk 0:02:56]}  Nxc3 {[%clk 0:02:50]} 6. dxc3 {[%clk 0:02:57]}  Bc5 {[%clk 0:02:38]} 7. Bf4 {[%clk 0:02:52]}  O-O {[%clk 0:02:38]} 8. O-O-O {[%clk 0:02:45]}  Be6 {[%clk 0:02:36]} 9. Qg3 {[%clk 0:02:40]}  Kh8 {[%clk 0:02:27]} 10. Nf3 {[%clk 0:02:35]}  Nc6 {[%clk 0:02:06]} 11. Bd3 {[%clk 0:02:26]}  f6 {[%clk 0:01:57]} 12. exf6 {[%clk 0:02:10]}  Qxf6 {[%clk 0:01:55]} 13. Bg5 {[%clk 0:02:09]}  Qf7 {[%clk 0:01:50]} 14. Rhf1 {[%clk 0:01:41]}  Qd7 {[%clk 0:01:49]} 15. Qh4 {[%clk 0:01:32]}  Bf5 {[%clk 0:01:44]} 16. Bb5 {[%clk 0:01:11]}  Rae8 {[%clk 0:01:24]} 17. Kb1 {[%clk 0:01:05]}  a6 {[%clk 0:01:19]} 18. Ba4 {[%clk 0:01:04]}  b5 {[%clk 0:01:18]} 19. Bb3 {[%clk 0:01:05]}  Be4 {[%clk 0:01:13]} 20. Bc1 {[%clk 0:00:58]}  Na5 {[%clk 0:01:01]} 21. Ng5 {[%clk 0:00:57]}  Nxb3 {[%clk 0:00:56]} 22. Rxf8+ {[%clk 0:00:38]}  Bxf8 {[%clk 0:00:45]} 23. axb3 {[%clk 0:00:32]}  Qf5 {[%clk 0:00:35]} 24. Nxe4 {[%clk 0:00:30]}  dxe4 {[%clk 0:00:31]} 25. Be3 {[%clk 0:00:25]}  h6 {[%clk 0:00:29]} 26. Rd8 {[%clk 0:00:15]}  Qf7 {[%clk 0:00:21]} 27. Rxe8 {[%clk 0:00:12]}  Qxe8 {[%clk 0:00:21]} 28. Qg4 {[%clk 0:00:12]}  Kh7 {[%clk 0:00:20]} 29. h4 {[%clk 0:00:11]}  Qg6 {[%clk 0:00:19]} 30. Qd7 {[%clk 0:00:10]}  Qxg2 {[%clk 0:00:18]} 31. h5 {[%clk 0:00:10]}  Qh1+ {[%clk 0:00:17]} 32. Ka2 {[%clk 0:00:10]}  Qxh5 {[%clk 0:00:17]} 33. Qxc7 {[%clk 0:00:09]}  Qe2 {[%clk 0:00:16]} 34. Bd4 {[%clk 0:00:09]}  h5 {[%clk 0:00:13]} 35. Qf7 {[%clk 0:00:08]}  Qf3 {[%clk 0:00:14]} 36. Qe6 {[%clk 0:00:08]}  h4 {[%clk 0:00:13]} 37. Qe5 {[%clk 0:00:07]}  h3 {[%clk 0:00:12]} 38. Qg5 {[%clk 0:00:06]}  Kg8 {[%clk 0:00:11]} 39. Qd5+ {[%clk 0:00:06]}  Kh7 {[%clk 0:00:10]} 40. Qg5 {[%clk 0:00:06]}  Kg8 {[%clk 0:00:04]} 41. Bg1 {[%clk 0:00:04]}  Bd6 {[%clk 0:00:02]} 42. Qd5+ {[%clk 0:00:04]}  Kh7 {[%clk 0:00:02]} 43. Qxd6 {[%clk 0:00:05]}  e3 {[%clk 0:00:01]} 44. Qe5 {[%clk 0:00:05]}  e2 {[%clk 0:00:02]} 45. Bd4 {[%clk 0:00:06]}  Qf7 {[%clk 0:00:01]} 46. Qxe2 {[%clk 0:00:06]}  Qg6 {[%clk 0:00:01]} 47. Qh2 {[%clk 0:00:06]}  Qg2 {[%clk 0:00:01]} 48. Qf4 {[%clk 0:00:05]}  h2 {[%clk 0:00:01]} 49. Qh4+ {[%clk 0:00:06]}  Kg8 {[%clk 0:00:01]} 50. Qd8+ {[%clk 0:00:07]}  Kh7 {[%clk 0:00:02]} 51. Qh4+ {[%clk 0:00:08]}  Kg8 {[%clk 0:00:02]} 52. Qd8+ {[%clk 0:00:08]}  Kh7 {[%clk 0:00:03]} 53. Qh4+ {[%clk 0:00:08]} 1/2-1/2


[Site "https://www.chess.com"]

[Event "Titled Tuesday Blitz April 25 Early 2023"]
[White "WindWhistler11"]
[Black "KRUMMEL2008"]
[WhiteElo "2464"]
[BlackElo "2639"]
[Result "1-0"]
[Round "03"]
[TimeControl "180+2"]
[Date "2023.04.25"]
[WhiteClock "0:00:58"]
[BlackClock "0:00:05"]

1. Nf3 {[%clk 0:02:28]}  Nf6 {[%clk 0:02:59]} 2. g3 {[%clk 0:02:28]}  g6 {[%clk 0:02:59]} 3. Bg2 {[%clk 0:02:28]}  Bg7 {[%clk 0:03:00]} 4. O-O {[%clk 0:02:28]}  O-O {[%clk 0:03:01]} 5. b3 {[%clk 0:02:26]}  b6 {[%clk 0:03:00]} 6. Bb2 {[%clk 0:02:27]}  Bb7 {[%clk 0:03:01]} 7. d4 {[%clk 0:02:27]}  d6 {[%clk 0:02:55]} 8. Nbd2 {[%clk 0:02:27]}  c5 {[%clk 0:02:55]} 9. Re1 {[%clk 0:02:21]}  cxd4 {[%clk 0:02:49]} 10. Bxd4 {[%clk 0:02:21]}  Ne4 {[%clk 0:02:35]} 11. Bxg7 {[%clk 0:02:20]}  Kxg7 {[%clk 0:02:36]} 12. Nxe4 {[%clk 0:02:21]}  Bxe4 {[%clk 0:02:37]} 13. Qd4+ {[%clk 0:02:21]}  e5 {[%clk 0:01:33]} 14. Qxe4 {[%clk 0:02:19]}  Nd7 {[%clk 0:01:33]} 15. Rad1 {[%clk 0:02:08]}  Qc7 {[%clk 0:01:28]} 16. Qd3 {[%clk 0:02:05]}  Rad8 {[%clk 0:01:23]} 17. Qxd6 {[%clk 0:02:03]}  Qxc2 {[%clk 0:01:23]} 18. Nxe5 {[%clk 0:01:58]}  Nf6 {[%clk 0:00:27]} 19. Qxd8 {[%clk 0:01:41]}  Rxd8 {[%clk 0:00:28]} 20. Rxd8 {[%clk 0:01:42]}  Qxa2 {[%clk 0:00:29]} 21. Rd3 {[%clk 0:01:30]}  Qa5 {[%clk 0:00:26]} 22. Nf3 {[%clk 0:01:29]}  Ne4 {[%clk 0:00:26]} 23. Rc1 {[%clk 0:01:27]}  Nc5 {[%clk 0:00:25]} 24. Rdc3 {[%clk 0:01:24]}  Qb4 {[%clk 0:00:17]} 25. Nd2 {[%clk 0:01:23]}  a5 {[%clk 0:00:16]} 26. Bd5 {[%clk 0:01:18]}  a4 {[%clk 0:00:15]} 27. bxa4 {[%clk 0:01:17]}  Nxa4 {[%clk 0:00:16]} 28. R3c2 {[%clk 0:01:15]}  Nc5 {[%clk 0:00:14]} 29. Nf3 {[%clk 0:01:12]}  Qa3 {[%clk 0:00:12]} 30. Rb1 {[%clk 0:01:10]}  Na4 {[%clk 0:00:11]} 31. Rc7 {[%clk 0:01:08]}  Qd6 {[%clk 0:00:07]} 32. Rxf7+ {[%clk 0:01:05]}  Kh6 {[%clk 0:00:08]} 33. Bb3 {[%clk 0:01:01]}  Nc3 {[%clk 0:00:07]} 34. Rb2 {[%clk 0:00:59]}  Nd1 {[%clk 0:00:05]} 35. Bxd1 {[%clk 0:00:57]}  Qxd1+ {[%clk 0:00:06]} 36. Kg2 {[%clk 0:00:58]}  Qd5 {[%clk 0:00:05]} 37. Rf4 {[%clk 0:00:56]}  b5 {[%clk 0:00:05]} 38. Rh4+ {[%clk 0:00:55]}  Kg7 {[%clk 0:00:05]} 39. Rhb4 {[%clk 0:00:56]}  Qd6 {[%clk 0:00:05]} 40. Rxb5 {[%clk 0:00:56]}  h5 {[%clk 0:00:06]} 41. Rb6 {[%clk 0:00:56]}  Qd5 {[%clk 0:00:05]} 42. R2b5 {[%clk 0:00:56]}  Qe4 {[%clk 0:00:06]} 43. Re5 {[%clk 0:00:56]}  Qa8 {[%clk 0:00:05]} 44. Re7+ {[%clk 0:00:56]}  Kh6 {[%clk 0:00:05]} 45. Ree6 {[%clk 0:00:57]}  Kh7 {[%clk 0:00:05]} 46. Rxg6 {[%clk 0:00:57]}  h4 {[%clk 0:00:05]} 47. Rh6+ {[%clk 0:00:57]}  Kg7 {[%clk 0:00:06]} 48. Rxh4 {[%clk 0:00:58]}  Qd5 {[%clk 0:00:06]} 49. Ra4 {[%clk 0:00:58]}  Kg8 {[%clk 0:00:05]} 50. Ra7 {[%clk 0:00:58]}  Kf8 {[%clk 0:00:06]} 51. Rb8+ {[%clk 0:00:57]}  Qd8 {[%clk 0:00:05]} 52. Rxd8# {[%clk 0:00:58]} 1-0


[Site "https://www.chess.com"]

[Event "Titled Tuesday Blitz April 25 Early 2023"]
[White "Saveliev, Alexei"]
[Black "Santos Flores, Alberto"]
[WhiteFideId "24128546"]
[BlackFideId "3601234"]
[WhiteElo "2271"]
[BlackElo "2235"]
[Result "0-1"]
[Round "03"]
[TimeControl "180+2"]
[Date "2023.04.25"]
[WhiteClock "0:00:01"]
[BlackClock "0:00:15"]

1. c4 {[%clk 0:02:57]}  c6 {[%clk 0:02:51]} 2. Nc3 {[%clk 0:02:57]}  d5 {[%clk 0:02:51]} 3. cxd5 {[%clk 0:02:58]}  cxd5 {[%clk 0:02:52]} 4. d4 {[%clk 0:02:59]}  Nf6 {[%clk 0:02:52]} 5. Nf3 {[%clk 0:02:59]}  Nc6 {[%clk 0:02:52]} 6. Bg5 {[%clk 0:02:59]}  Ne4 {[%clk 0:02:51]} 7. Bh4 {[%clk 0:02:59]}  Bf5 {[%clk 0:02:48]} 8. e3 {[%clk 0:02:59]}  Nxc3 {[%clk 0:02:39]} 9. bxc3 {[%clk 0:03:00]}  Qa5 {[%clk 0:02:39]} 10. Qb3 {[%clk 0:02:57]}  e6 {[%clk 0:02:35]} 11. Be2 {[%clk 0:02:49]}  Bd6 {[%clk 0:02:22]} 12. O-O {[%clk 0:02:50]}  Rb8 {[%clk 0:02:16]} 13. c4 {[%clk 0:02:32]}  dxc4 {[%clk 0:02:16]} 14. Bxc4 {[%clk 0:02:30]}  O-O {[%clk 0:02:14]} 15. Bd3 {[%clk 0:02:23]}  Bxd3 {[%clk 0:02:09]} 16. Qxd3 {[%clk 0:02:24]}  Rfc8 {[%clk 0:02:08]} 17. Ng5 {[%clk 0:02:07]}  g6 {[%clk 0:02:04]} 18. Ne4 {[%clk 0:02:08]}  Bf8 {[%clk 0:01:59]} 19. Nf6+ {[%clk 0:01:43]}  Kg7 {[%clk 0:01:47]} 20. Nd7 {[%clk 0:01:40]}  Ra8 {[%clk 0:01:45]} 21. Bf6+ {[%clk 0:01:37]}  Kg8 {[%clk 0:01:44]} 22. Nxf8 {[%clk 0:01:37]}  Rxf8 {[%clk 0:01:43]} 23. e4 {[%clk 0:01:37]}  Rfc8 {[%clk 0:01:34]} 24. e5 {[%clk 0:01:33]}  Qb4 {[%clk 0:01:26]} 25. Rfd1 {[%clk 0:01:27]}  Qf8 {[%clk 0:01:25]} 26. Rab1 {[%clk 0:01:16]}  b6 {[%clk 0:01:25]} 27. a3 {[%clk 0:00:44]}  Ne7 {[%clk 0:01:24]} 28. Rdc1 {[%clk 0:00:39]}  Nd5 {[%clk 0:01:23]} 29. Qf3 {[%clk 0:00:27]}  Rxc1+ {[%clk 0:01:20]} 30. Rxc1 {[%clk 0:00:27]}  Rc8 {[%clk 0:01:21]} 31. Rxc8 {[%clk 0:00:21]}  Qxc8 {[%clk 0:01:21]} 32. g3 {[%clk 0:00:21]}  Qc3 {[%clk 0:01:07]} 33. Qe4 {[%clk 0:00:07]}  Qxa3 {[%clk 0:01:04]} 34. Kg2 {[%clk 0:00:06]}  a5 {[%clk 0:00:59]} 35. Qc2 {[%clk 0:00:05]}  Qc3 {[%clk 0:00:38]} 36. Qe4 {[%clk 0:00:06]}  a4 {[%clk 0:00:33]} 37. Qh4 {[%clk 0:00:06]}  Qc6 {[%clk 0:00:22]} 38. Kh3 {[%clk 0:00:06]}  Qc8 {[%clk 0:00:20]} 39. Qh6 {[%clk 0:00:05]}  Qf8 {[%clk 0:00:20]} 40. Qc1 {[%clk 0:00:06]}  a3 {[%clk 0:00:19]} 41. Qc2 {[%clk 0:00:05]}  Qa8 {[%clk 0:00:15]} 42. Qa2 {[%clk 0:00:05]}  b5 {[%clk 0:00:15]} 43. Kg4 {[%clk 0:00:01]}  b4 {[%clk 0:00:15]} 0-1


[Site "https://www.chess.com"]

[Event "Titled Tuesday Blitz April 25 Early 2023"]
[White "HamedWafa4"]
[Black "hakanazeri2"]
[WhiteElo "2460"]
[BlackElo "2634"]
[Result "0-1"]
[Round "03"]
[TimeControl "180+2"]
[Date "2023.04.25"]
[WhiteClock "0:00:41"]
[BlackClock "0:01:10"]

1. e4 {[%clk 0:03:00]}  c5 {[%clk 0:02:56]} 2. Nf3 {[%clk 0:03:00]}  d6 {[%clk 0:02:55]} 3. Bb5+ {[%clk 0:02:59]}  Bd7 {[%clk 0:02:55]} 4. Bxd7+ {[%clk 0:02:55]}  Qxd7 {[%clk 0:02:56]} 5. O-O {[%clk 0:02:54]}  Nc6 {[%clk 0:02:52]} 6. c3 {[%clk 0:02:53]}  e6 {[%clk 0:02:51]} 7. d4 {[%clk 0:02:52]}  cxd4 {[%clk 0:02:52]} 8. cxd4 {[%clk 0:02:53]}  d5 {[%clk 0:02:51]} 9. e5 {[%clk 0:02:53]}  Nge7 {[%clk 0:02:51]} 10. Nc3 {[%clk 0:02:51]}  Ng6 {[%clk 0:02:48]} 11. h4 {[%clk 0:02:50]}  Bb4 {[%clk 0:02:48]} 12. h5 {[%clk 0:02:48]}  Nge7 {[%clk 0:02:48]} 13. h6 {[%clk 0:02:46]}  gxh6 {[%clk 0:02:48]} 14. Bxh6 {[%clk 0:02:38]}  Nf5 {[%clk 0:02:47]} 15. Bg5 {[%clk 0:02:37]}  Rg8 {[%clk 0:02:45]} 16. Bf6 {[%clk 0:02:37]}  Be7 {[%clk 0:02:19]} 17. Bxe7 {[%clk 0:02:22]}  Ncxe7 {[%clk 0:02:13]} 18. Qa4 {[%clk 0:02:12]}  Qxa4 {[%clk 0:02:11]} 19. Nxa4 {[%clk 0:02:13]}  Ng6 {[%clk 0:02:10]} 20. g3 {[%clk 0:01:57]}  h5 {[%clk 0:01:52]} 21. Rfc1 {[%clk 0:01:47]}  h4 {[%clk 0:01:51]} 22. Rc7 {[%clk 0:01:26]}  hxg3 {[%clk 0:01:50]} 23. fxg3 {[%clk 0:01:26]}  Nf4 {[%clk 0:01:47]} 24. Kf2 {[%clk 0:01:15]}  Rxg3 {[%clk 0:01:46]} 25. Rh1 {[%clk 0:00:57]}  Kf8 {[%clk 0:01:11]} 26. Rh8+ {[%clk 0:00:53]}  Kg7 {[%clk 0:01:11]} 27. Rxa8 {[%clk 0:00:52]}  Rg2+ {[%clk 0:01:11]} 28. Ke1 {[%clk 0:00:46]}  Ne3 {[%clk 0:01:11]} 29. Ng1 {[%clk 0:00:41]}  Nd3# {[%clk 0:01:10]} 0-1


[Site "https://www.chess.com"]

[Event "Titled Tuesday Blitz April 25 Early 2023"]
[White "Melikhov, Evgeny V."]
[Black "Nikologorskiy, Konstantin"]
[WhiteFideId "4122046"]
[BlackFideId "24111708"]
[WhiteElo "2158"]
[BlackElo "2293"]
[Result "0-1"]
[Round "03"]
[TimeControl "180+2"]
[Date "2023.04.25"]
[WhiteClock "0:00:12"]
[BlackClock "0:00:54"]

1. d4 {[%clk 0:02:57]}  Nf6 {[%clk 0:02:59]} 2. c4 {[%clk 0:02:57]}  e6 {[%clk 0:02:59]} 3. Nc3 {[%clk 0:02:57]}  Bb4 {[%clk 0:02:59]} 4. Qc2 {[%clk 0:02:57]}  O-O {[%clk 0:02:59]} 5. e4 {[%clk 0:02:57]}  d5 {[%clk 0:02:58]} 6. e5 {[%clk 0:02:56]}  Ne4 {[%clk 0:02:59]} 7. Bd3 {[%clk 0:02:57]}  c5 {[%clk 0:02:58]} 8. Nf3 {[%clk 0:02:57]}  cxd4 {[%clk 0:02:59]} 9. Nxd4 {[%clk 0:02:57]}  Nd7 {[%clk 0:03:00]} 10. Bf4 {[%clk 0:02:57]}  Ndc5 {[%clk 0:03:00]} 11. O-O {[%clk 0:02:54]}  Bxc3 {[%clk 0:03:00]} 12. bxc3 {[%clk 0:02:54]}  Bd7 {[%clk 0:03:00]} 13. cxd5 {[%clk 0:02:26]}  exd5 {[%clk 0:03:01]} 14. f3 {[%clk 0:02:19]}  Nxd3 {[%clk 0:02:53]} 15. Qxd3 {[%clk 0:02:12]}  Nc5 {[%clk 0:02:53]} 16. Qe3 {[%clk 0:02:04]}  Rc8 {[%clk 0:02:50]} 17. Bg5 {[%clk 0:01:57]}  Qc7 {[%clk 0:02:21]} 18. Be7 {[%clk 0:01:48]}  Rfe8 {[%clk 0:02:22]} 19. Qg5 {[%clk 0:01:45]}  Ne6 {[%clk 0:01:52]} 20. Nxe6 {[%clk 0:01:44]}  fxe6 {[%clk 0:01:53]} 21. Bf6 {[%clk 0:01:30]}  Bb5 {[%clk 0:01:52]} 22. Rfd1 {[%clk 0:01:20]}  Kh8 {[%clk 0:01:35]} 23. Rd4 {[%clk 0:01:09]}  gxf6 {[%clk 0:01:30]} 24. exf6 {[%clk 0:01:05]}  Qf7 {[%clk 0:01:28]} 25. Rg4 {[%clk 0:00:50]}  Rg8 {[%clk 0:01:26]} 26. Qe5 {[%clk 0:00:49]}  Rcf8 {[%clk 0:01:20]} 27. Re1 {[%clk 0:00:40]}  Qxf6 {[%clk 0:01:18]} 28. Rxg8+ {[%clk 0:00:39]}  Kxg8 {[%clk 0:01:19]} 29. Qd6 {[%clk 0:00:24]}  Re8 {[%clk 0:01:09]} 30. Re5 {[%clk 0:00:22]}  Qe7 {[%clk 0:00:53]} 31. Qxe7 {[%clk 0:00:13]}  Rxe7 {[%clk 0:00:54]} 32. f4 {[%clk 0:00:13]}  Kf7 {[%clk 0:00:54]} 33. Kf2 {[%clk 0:00:13]}  Rc7 {[%clk 0:00:54]} 34. Re3 {[%clk 0:00:12]}  Rc4 {[%clk 0:00:54]} 0-1


[Site "https://www.chess.com"]

[Event "Titled Tuesday Blitz April 25 Early 2023"]
[White "Balla, Tamas-Kristof"]
[Black "Maurizzi, Marc`Andria"]
[WhiteFideId "1208497"]
[BlackFideId "36083534"]
[WhiteElo "2334"]
[BlackElo "2421"]
[Result "1-0"]
[Round "03"]
[TimeControl "180+2"]
[Date "2023.04.25"]
[WhiteClock "0:00:17"]
[BlackClock "0:00:49"]

1. e4 {[%clk 0:03:00]}  e6 {[%clk 0:02:56]} 2. d4 {[%clk 0:03:00]}  d5 {[%clk 0:02:57]} 3. Nd2 {[%clk 0:03:01]}  c5 {[%clk 0:02:53]} 4. exd5 {[%clk 0:03:00]}  exd5 {[%clk 0:02:54]} 5. Ngf3 {[%clk 0:03:00]}  a6 {[%clk 0:02:54]} 6. c3 {[%clk 0:02:51]}  Nc6 {[%clk 0:02:54]} 7. Bd3 {[%clk 0:02:49]}  Nf6 {[%clk 0:02:53]} 8. O-O {[%clk 0:02:49]}  cxd4 {[%clk 0:02:54]} 9. Nxd4 {[%clk 0:02:43]}  Nxd4 {[%clk 0:02:52]} 10. cxd4 {[%clk 0:02:44]}  Bd6 {[%clk 0:02:52]} 11. Re1+ {[%clk 0:02:44]}  Be6 {[%clk 0:02:53]} 12. Nf3 {[%clk 0:02:41]}  O-O {[%clk 0:02:54]} 13. Ne5 {[%clk 0:02:35]}  Qb6 {[%clk 0:02:47]} 14. Bg5 {[%clk 0:01:49]}  Ne4 {[%clk 0:02:44]} 15. Bxe4 {[%clk 0:01:43]}  dxe4 {[%clk 0:02:45]} 16. Bc1 {[%clk 0:01:30]}  f6 {[%clk 0:02:35]} 17. Ng4 {[%clk 0:01:21]}  f5 {[%clk 0:02:35]} 18. Ne3 {[%clk 0:01:18]}  Rac8 {[%clk 0:02:26]} 19. d5 {[%clk 0:01:15]}  Bd7 {[%clk 0:02:26]} 20. b3 {[%clk 0:01:10]}  Bb5 {[%clk 0:02:01]} 21. Bb2 {[%clk 0:01:05]}  f4 {[%clk 0:01:59]} 22. Qg4 {[%clk 0:00:59]}  g6 {[%clk 0:01:55]} 23. Qe6+ {[%clk 0:00:54]}  Rf7 {[%clk 0:01:54]} 24. Ng4 {[%clk 0:00:55]}  Rc7 {[%clk 0:01:47]} 25. Nf6+ {[%clk 0:00:44]}  Kf8 {[%clk 0:01:44]} 26. Nxe4 {[%clk 0:00:35]}  Rc2 {[%clk 0:01:11]} 27. Qxd6+ {[%clk 0:00:29]}  Qxd6 {[%clk 0:01:09]} 28. Nxd6 {[%clk 0:00:30]}  Rxb2 {[%clk 0:01:10]} 29. Nxf7 {[%clk 0:00:27]}  Kxf7 {[%clk 0:01:11]} 30. Rad1 {[%clk 0:00:26]}  Be2 {[%clk 0:01:06]} 31. Rd4 {[%clk 0:00:20]}  Bg4 {[%clk 0:00:54]} 32. d6 {[%clk 0:00:20]}  Bd7 {[%clk 0:00:54]} 33. h3 {[%clk 0:00:20]}  Kf6 {[%clk 0:00:54]} 34. Re7 {[%clk 0:00:20]}  Bc6 {[%clk 0:00:53]} 35. d7 {[%clk 0:00:19]}  f3 {[%clk 0:00:48]} 36. d8=Q {[%clk 0:00:17]}  Rb1+ {[%clk 0:00:49]} 37. Re1+ {[%clk 0:00:17]} 1-0


[Site "https://www.chess.com"]